Cogmind - Beta 17 @@@ ROGUE MODE // 2026.08.18 @ 00:24:20 Player: THN-L0C Result: Self-destructed Performance ------------- Evolutions (4) 2000 Regions Visited (5) 1000 Robots Destroyed (52) 260 Value Destroyed (1552) 1552 Prototype IDs (36) 720 Alien Tech Used (0) 0 Bonus (2546) 2546 TOTAL SCORE: 8078 Bonus ------- Follower Combat Kills 246 Delivered SUBCON Basin 2000 Registered with UFD 300 Cogmind --------- Core Integrity 573/850 Matter 286/300 Energy 150/150 System Corruption 26% Temperature Cool (0) Movement Treading (240) Ox1 Location -6/Factory Parts ------- > --- POWER (1) -------- Light Angular Momentum Engine > --- PROPULSION (4) --- Light Treads Improved Medium Treads (fused) Overtuned Scrapsphere Overtuned Scrapsphere > --- UTILITY (8) ------ Scrap Suit Light Humpback Improved Target Analyzer Transmission Jammer (fused) Makeshift Ablative Armor Tech Extrapolator > --- WEAPON (2) ------- Gauss Rifle Heavy Machine Gun > --- INVENTORY (25) --- Maxwheels Improved Heat Sink High-capacity Storage Unit Experimental Sensor Array IFF Parser Advanced Terrain Scanner Hardened Medium Armor Plating Powered Armor Authchip [Armor] Authchip [Weapon] A0-MCA's Component Scanner Dynamic Insulation System High-powered Tractor Beam Improved Arc Projector Compact Ion Cannon Shock Bomb Launcher CPS Tube (2) CPS Tube (2) CPS Tube (2) Vortex Trap DRS Beacon (Ready) Peak State ------------ > --- POWER ------------ Micro Fission Core > --- PROPULSION ------- Light Treads Improved Medium Treads Heavy Treads > --- UTILITY ---------- Improved Heat Sink High-capacity Storage Unit Improved Target Analyzer Transmission Jammer Hardened Medium Armor Plating Makeshift Thermal Plating Tech Extrapolator Self-contained Transmogrifier > --- WEAPON ----------- Hypervelocity Gauss Rifle Hypervelocity Gauss Rifle > --- INVENTORY -------- Maxwheels Experimental Sensor Array Advanced Terrain Scanner Powered Armor Authchip [Storage] Authchip [Armor] Authchip [Armor] Authchip [Weapon] A0-MCA's Component Scanner High-powered Tractor Beam Improved Arc Projector Compact Ion Cannon Shock Bomb Launcher CPS Tube CPS Tube Vortex Trap DRS Beacon [Rating: 79] Favorites ----------- Power Heavy Ion Engine Engine Heavy Ion Engine Power Core Micro Fission Core Propulsion Compact Wheel Treads Light Treads Leg Improved Titanium Leg Wheel Compact Wheel Hover Unit Hover Unit Flight Unit Flight Unit Utility High-capacity Storage Unit Device Seismic Detector Storage High-capacity Storage Unit Processor Tech Extrapolator Hackware System Shield Protection Improved Medium Armor Plating Weapon Coil Gun Energy Gun Spread Laser Energy Cannon Subdweller Beam Cannon Ballistic Gun Coil Gun Ballistic Cannon Battle Cannon Launcher Subdweller Shrapnel Launcher Special Weapon Multitool Impact Weapon Hammer Piercing Weapon Spear Build | -11 -10 -10 -8 -8 -6 ------- Run | Yrd Mat Sub Rec Scr Fac Slots Evolved 8 | . . . . . 8 Power . | . . . . . . Propulsion 2 | . . . . . 2 Utility 6 | . . . . . 6 Weapon . | . . . . . . Parts Attached 81 | 7 5 17 4 13 35 Power 9 | 1 1 2 . 2 3 Engine 9 | 1 1 2 . 2 3 Core . | . . . . . . Reactor . | . . . . . . Propulsion 15 | 2 . 3 1 4 5 Treads 2 | . . . . 1 1 Leg 2 | . . . . . 2 Wheel 9 | 2 . 3 1 1 2 Hover 1 | . . . . 1 . Flight 1 | . . . . 1 . Utility 33 | 2 2 4 . 4 21 Device 13 | 1 . 2 . . 10 Storage 7 | 1 2 1 . 2 1 Processor 3 | . . . . 1 2 Hackware 4 | . . . . . 4 Protection 6 | . . 1 . 1 4 Artifact . | . . . . . . Weapon 24 | 2 2 8 3 3 6 Energy Gun 7 | 2 2 3 . . . Energy Cannon 4 | . . 1 1 . 2 Ballistic Gun 6 | . . . 1 3 2 Ballistic Cannon 2 | . . 1 . . 1 Launcher 1 | . . 1 . . . Special Weapon 2 | . . 1 1 . . Impact Weapon 1 | . . 1 . . . Slashing Weapon . | . . . . . . Piercing Weapon 1 | . . . . . 1 Special Melee Weapon . | . . . . . . Unidentified Prototypes 4 | . 1 . . . 3 Corrupted Parts 2 | . . . . . 2 System Corruption 6 | . . . . . 6 Parts Lost 17 | . . 8 . . 9 Power 1 | . . 1 . . . Propulsion 4 | . . 2 . . 2 Utility 8 | . . 3 . . 5 Weapon 4 | . . 2 . . 2 Highest Loss Streak 3 | . . 3 . . 3 To Critical Strikes . | . . . . . . Average Backups 15 | . 17 17 17 15 15 Power . | . 1 1 1 . . Propulsion 1 | . . 1 3 1 1 Utility 8 | . 7 5 6 8 10 Weapon 4 | . 7 7 5 3 2 Tool/Special . | . . . . . . Unused Backups 42 | . 1 5 1 16 19 Power 3 | . 1 . . 1 1 Propulsion 1 | . . . . . 1 Utility 25 | . . 2 1 11 11 Weapon 9 | . . 3 . 3 3 Tool/Special 4 | . . . . 1 3 Average Slot Usage (%) 86 | . 98 91 85 82 87 Engine 12 | . 13 13 14 13 3 Treads 2 | . . . . 1 14 Wheel 19 | . 28 24 28 20 3 Device 5 | . 13 7 . . 16 Storage 11 | . 14 14 14 12 6 Processor 4 | . . . . 4 10 Protection 2 | . . 1 . . 9 Energy Gun 5 | . 27 18 1 . . Ballistic Gun 7 | . . . . 12 9 Special Weapon 4 | . . 2 12 6 . Impact Weapon 4 | . . 2 6 6 . Peak Build Rating 79 | 7 14 37 37 34 79 Average Rating 28 | 5 12 16 33 22 69 On Entrance 18 | . 7 14 37 21 34 Avg Prop Armor Cover (%) 6 | . . . . 6 6 Naked Turns 76 | . . . . 76 . Heaviest Build 218 | 13 55 214 218 218 77 Greatest Support 120 | 32 32 36 36 36 120 Greatest Overweight (x) 13 | . 1 5 6 13 4 Average Overweight (x) 3 | . . 2 5 5 1 Largest Inventory Capacity 35 | 8 20 35 35 35 25 Average Capacity 24 | 7 18 23 35 25 21 Most Carried 35 | 4 20 35 35 29 25 Average Carried 19 | . 17 20 33 17 20 Final Capacity 35 | 8 20 35 35 20 25 Final Carried 35 | 4 20 35 28 20 24 Scrap Suit Usage (%) 2 | . . . . . 16 Parts Cannibalized 1 | . . . . . 1 Transmogrified Parts 10 | . . . . . 10 Integrity Recovered 240 | . . . . . 240 Class Distribution -------------------- 53% | Mutant 37% | Hauler-Mutant 3% | Hacker-Mutant Dominant Class ---------------- Mutant | -10/Materials Mutant | -10/Subcaves Hauler-Mutant | -8/Recycling Hauler-Mutant | -8/Scraptown Mutant | -6/Factory Resources | -11 -10 -10 -8 -8 -6 ----------- Run | Yrd Mat Sub Rec Scr Fac Matter Collected 2572 | 218 222 612 115 208 1197 Remotely 270 | . . . . . 270 Salvage Created 1642 | 105 206 216 67 . 1048 Parts 118 | 9 12 24 . . 73 Haulers Intercepted 1 | . 1 . . . . Recyclers Shooed 4 | 1 . . . . 3 Parts Field Recycled . | . . . . . . Retrieved Matter . | . . . . . . Parts Self-Destructed 10 | . . 10 . . . Prevented . | . . . . . . Parts Restored . | . . . . . . Kills | -11 -10 -10 -8 -8 -6 ------- Run | Yrd Mat Sub Rec Scr Fac Combat Hostiles Destroyed 31 | . 5 14 . . 12 Guns 24 | . 5 9 . . 10 Cannons 1 | . . 1 . . . AOE 6 | . . 4 . . 2 Classes Destroyed 16 | 1 3 5 1 . 6 Worker 5 | . . . . . 5 Builder 4 | . . . . . 4 Tunneler 5 | 5 . . . . . Hauler 1 | . 1 . . . . Recycler 2 | . . . 1 . 1 Mechanic 1 | . . . . . 1 Turret 2 | . . 2 . . . Watcher 1 | . 1 . . . . Swarmer 4 | . . 4 . . . Grunt 8 | . 5 1 . . 2 Sentry 4 | . . 1 . . 3 Specialist 1 | . . . . . 1 Hunter 1 | . . . . . 1 Programmer 5 | . . . . . 5 Artisan 1 | . . 1 . . . Subdweller 8 | . . 8 . . . Best Kill Streak 6 | 4 2 6 1 . 4 Combat Bots Only 4 | . 2 4 . . 4 Max Kills in Single Turn 4 | 1 1 2 1 . 4 Gunslinging . | . . . . . . Exploded 2 | . . 2 . . 1 Melee . | . . . . . . Uniques/NPCs Destroyed . | . . . . . . Combat | -11 -10 -10 -8 -8 -6 -------- Run | Yrd Mat Sub Rec Scr Fac Hostile Shots Fired 410 | . 20 83 . . 307 Missed 161 | . 5 28 . . 128 Hits 249 | . 15 55 . . 179 Projectile 249 | . 15 55 . . 179 AOE 2 | . . 2 . . . Critical Strikes 3 | . . . . . 3 Part Disruptions 3 | . . . . . 3 Damage Taken 3865 | . 200 933 . . 2732 Core 514 | . 42 195 . . 277 Absorbed by Shields . | . . . . . . Ignored by Resistances 63 | . . . . . 63 Regen/Repaired (Parts) 91 | . 51 . . . 40 Core Remaining (%) 52 | 100 . . . 5 . Volleys Fired 228 | 12 16 75 16 . 109 Largest 2 | 2 2 2 1 . 2 Hottest 130 | 80 130 130 80 . 66 Shots Fired 333 | 24 32 113 16 . 148 Gun 270 | 24 32 65 1 . 148 Cannon 38 | . . 23 15 . . Launcher 6 | . . 6 . . . Special 19 | . . 19 . . . Kinetic 160 | . . 12 . . 148 Thermal 172 | 24 32 101 15 . . Explosive . | . . . . . . Electromagnetic 1 | . . . 1 . . Robot Hit Streak 15 | 8 11 15 11 . 12 Robot Miss Streak 6 | 2 4 4 1 . 6 Penetration Max 1 | . . . . . 1 Secondary Targets 2 | . . 2 . . . Max Gunslinging Chain 1 | . . 1 . . . Shots Hit Robots 213 | 16 25 75 2 . 95 Core Hits 169 | 5 36 79 . . 49 Critical Kills 9 | . . . . . 9 Critical Parts Destroyed 13 | . . . 1 . 12 Critical Strikes 25 | . . . 1 . 24 Destroy 23 | . . . . . 23 Smash 1 | . . . 1 . . Impale 1 | . . . . . 1 Melee Attacks 54 | . . 26 7 . 21 Impact 33 | . . 26 7 . . Slashing . | . . . . . . Piercing 21 | . . . . . 21 Sneak Attacks 5 | . . 1 1 . 3 Combat Hostiles . | . . . . . . Follow-up Attacks . | . . . . . . Damage Inflicted 4334 | 179 353 1746 69 . 1987 Guns 2814 | 179 353 1003 . . 1279 Cannons 225 | . . 199 26 . . Explosions 953 | . . 509 . . 444 Melee 341 | . . 35 43 . 263 Ramming 1 | . . . . . 1 Kinetic 1918 | . . 639 . . 1279 Thermal 1630 | 179 353 1072 26 . . Explosive 340 | . . . . . 340 Electromagnetic 104 | . . . . . 104 Impact 78 | . . 35 43 . . Slashing . | . . . . . . Piercing 263 | . . . . . 263 Highest Corruption 26 | . 2 2 2 . 26 Average Corruption 7 | . 2 2 2 . 16 Corruption Purged . | . . . . . . Corruption Blocked . | . . . . . . Effects 124 | . . 23 14 . 87 Message Errors 32 | . . 3 6 . 23 Matter Fused 34 | . . 9 4 . 21 Heat Flow Errors 13 | . . 4 3 . 6 Energy Discharges 13 | . . 1 . . 12 Parts Rejected 1 | . . . . . 1 Parts Fused 2 | . . 1 . . 1 Data Loss (minor) 11 | . . 4 . . 7 Data Loss (major) 5 | . . 1 . . 4 Misfires 4 | . . . 1 . 3 Alerts 4 | . . . . . 4 Weapon Failures 5 | . . . . . 5 Overload Shots . | . . . . . . Overflow Damage 120 | . . 17 43 . 60 Projectiles . | . . . . . . Explosions 17 | . . 17 . . . Melee 103 | . . . 43 . 60 Knockbacks 1 | . . . 1 . . Impact 1 | . . . 1 . . Kinetic . | . . . . . . Secondary . | . . . . . . Self-Inflicted Damage 12 | . . . . . 12 Shots 1 | . . . . . 1 Rammed 2 | . . . . . 2 Targets Rammed 2 | . . . . . 2 Kicked . | . . . . . . Crushed . | . . . . . . Highest Temperature 321 | 158 321 317 249 . 246 Average Temperature 79 | 84 124 57 83 . 57 Received Heat Transfer 948 | . 114 261 . . 573 Siege Activations . | . . . . . . Martial Activations . | . . . . . . Shielding Activations . | . . . . . . Robots Disrupted . | . . . . . . Combat Hostiles . | . . . . . . Robots Corrupted 1 | . . . 1 . . Combat Hostiles . | . . . . . . Parts Fried . | . . . . . . Impact Corruptions 2 | . . . 2 . . Robots Melted . | . . . . . . Combat Hostiles . | . . . . . . Parts Melted 1 | . 1 . . . . Heat Transferred 2280 | 400 445 1398 37 . . Parts Sabotaged . | . . . . . . Parts Stolen . | . . . . . . Parts Stripped . | . . . . . . Power Chain Reactions . | . . . . . . Alert | -11 -10 -10 -8 -8 -6 ------- Run | Yrd Mat Sub Rec Scr Fac Maximum Alert Level . | . . . . . . Low Security (%) 100 | 100 100 . 100 . 100 Level 1 . | . . . . . . Level 2 . | . . . . . . Level 3 . | . . . . . . Level 4 . | . . . . . . Level 5 . | . . . . . . High Security . | . . . . . . Max Security . | . . . . . . Peak Influence 174 | 10 77 . 8 . 174 Initial . | . . . . . . Average 34 | 2 11 . . . 62 Influence Increases 1149 | 25 235 160 32 . 697 Destroy 0b10 Robot/C 620 | . 100 160 . . 360 Destroy 0b10 Robot/NC 95 | 25 10 . 5 . 55 Destroy Leader 154 | . 34 . . . 120 Allied During Kill 48 | . . . . . 48 Successful Hack 75 | . 46 . 13 . 16 Disable Machine 75 | . . . . . 75 Destroy Structure 22 | . . . 14 . 8 Lose Combat Pursuer 60 | . 45 . . . 15 Influence Decreases 995 | 25 201 194 32 . 543 Entered New Map 17 | . . 17 . . . Time Decay 787 | 25 201 167 32 . 362 Lost Part 71 | . . 10 . . 61 Lost Ally 120 | . . . . . 120 Squads Dispatched 12 | . 3 . . . 9 Investigation 4 | . 1 . . . 3 Extermination 4 | . . . . . 4 Reinforcement 4 | . 2 . . . 2 Assault . | . . . . . . Garrison . | . . . . . . Intercept . | . . . . . . Searches Triggered . | . . . . . . Construction Impeded 1 | . . . . . 1 Haulers Reinforced . | . . . . . . Active Scanning Responses . | . . . . . . Cargo Convoy Interrupts . | . . . . . . Stealth | -11 -10 -10 -8 -8 -6 --------- Run | Yrd Mat Sub Rec Scr Fac Distress Signals 2 | . 2 . . . . Communications Jammed 1 | . . . . . 1 Distress Signals 1 | . . . . . 1 Times Spotted 51 | . 12 18 . . 21 Peak Tracking Total 6 | . 4 6 . . 3 Tactical Retreats 3 | . 2 . . . 1 Traps | -11 -10 -10 -8 -8 -6 ------- Run | Yrd Mat Sub Rec Scr Fac Traps Triggered 4 | . 3 . . . 1 Indirectly . | . . . . . . Trap Hack Attempts . | . . . . . . Triggered . | . . . . . . Disarmed . | . . . . . . Reprogrammed . | . . . . . . Reused . | . . . . . . Traps Extracted . | . . . . . . Installed . | . . . . . . Triggered . | . . . . . . Most Traps Carried 1 | . . 1 . 1 1 Machines | -11 -10 -10 -8 -8 -6 ---------- Run | Yrd Mat Sub Rec Scr Fac Machines Disabled 10 | . . 5 . . 5 Max in Single Turn 3 | . . 3 . . 2 Machines Repaired . | . . . . . . Machines Dismantled . | . . . . . . Machines Sabotaged . | . . . . . . Overloaded Fab Kills . | . . . . . . Hacking | -11 -10 -10 -8 -8 -6 --------- Run | Yrd Mat Sub Rec Scr Fac Machines Accessed 24 | . 7 4 5 3 5 Terminals 11 | . 6 . 5 . . Fabricators 3 | . . . . . 3 Repair Stations 2 | . 1 . . . 1 Recycling Units 1 | . . . . . 1 Scanalyzers . | . . . . . . Garrison Access . | . . . . . . Total Hacks 77 | . 30 8 15 13 11 Successful 54 | . 18 8 6 13 9 Failed 23 | . 12 . 9 . 2 Catastrophic . | . . . . . . Database Lockouts . | . . . . . . Manual 38 | . 19 . 14 . 5 Terminals 42 | . 27 . 15 . . Fabricators 8 | . . . . . 8 Repair Stations 4 | . 3 . . . 1 Recycling Units 2 | . . . . . 2 Scanalyzers . | . . . . . . Garrison Access . | . . . . . . Terminal Hacks 29 | . 7 8 1 13 . Record 9 | . . 5 . 4 . Robot Analysis 9 | . 1 . . 8 . Prototype ID Bank 2 | . 2 . . . . Open Door 1 | . . 1 . . . Hauler Manifests 1 | . 1 . . . . Registered Components 1 | . 1 . . . . Registered Prototypes 1 | . 1 . . . . Zone Layout 2 | . 1 . 1 . . Proto ID Catalog 2 | . . 1 . 1 . Release Object 1 | . . 1 . . . Fabricator Hacks 6 | . . . . . 6 Load Schematic 3 | . . . . . 3 Build 3 | . . . . . 3 Repair Station Hacks 2 | . 2 . . . . Scan Component 1 | . 1 . . . . Repair 1 | . 1 . . . . Recycling Unit Hacks . | . . . . . . Scanalyzer . | . . . . . . Garrison Access Hacks . | . . . . . . Unauthorized Hacks 17 | . 9 . 5 . 3 Terminals 14 | . 9 . 5 . . Botnet 5 | . 3 . 2 . . Operators 1 | . 1 . . . . Skim 8 | . 5 . 3 . . Fabricators 1 | . . . . . 1 Liberate 1 | . . . . . 1 Repair Stations 1 | . . . . . 1 Patch 1 | . . . . . 1 Recycling Units 1 | . . . . . 1 Scrapoids 1 | . . . . . 1 Scanalyzers . | . . . . . . Garrison Access . | . . . . . . Data Cores Recovered . | . . . . . . Used . | . . . . . . Hacking Detections 13 | . 7 . 3 . 3 Full Trace Events 2 | . . . 1 . 1 Feedback Events . | . . . . . . Feedback Blocked . | . . . . . . Robot Schematics Acquired . | . . . . . . Robots Built . | . . . . . . Authchips . | . . . . . . Time . | . . . . . . Total Robot Build Rating . | . . . . . . Part Schematics Acquired 22 | . . . . 15 7 Parts Built 3 | . . . . . 3 Authchips 2 | . . . . . 2 Time 136 | . . . . . 136 Total Part Build Rating 14 | . . . . . 14 Part Studies Acquired . | . . . . . . Parts Repaired 1 | . 1 . . . . Time 32 | . 32 . . . . Parts Recycled . | . . . . . . Recycled Matter . | . . . . . . Retrieved Matter . | . . . . . . Retrieved Components . | . . . . . . Parts Scanalyzed . | . . . . . . Part Schematics Acquired . | . . . . . . Parts Damaged . | . . . . . . Bothacking | -11 -10 -10 -8 -8 -6 ------------ Run | Yrd Mat Sub Rec Scr Fac Used RIF Installer . | . . . . . . Robots Hacked . | . . . . . . Non-combat . | . . . . . . Combat . | . . . . . . Robot Hacks Applied . | . . . . . . Relay Couplers Released . | . . . . . . Fabnet Peak Effective % . | . . . . . . Robots Rewired . | . . . . . . Allies Hacked . | . . . . . . Hacks Repelled . | . . . . . . Allies | -11 -10 -10 -8 -8 -6 -------- Run | Yrd Mat Sub Rec Scr Fac Total Allies 7 | . . . . . 7 Largest Group 7 | . . . . . 7 Highest-Rated Group 214 | . . . . . 214 Highest-Rated Ally 41 | . . . . . 41 Initial UFD Resources 23 | . . . . . 23 Total Orders . | . . . . . . Ally Attacks 75 | . . . . . 75 Total Damage 1036 | . . . . . 1036 Kills 6 | . . . . . 6 Allies Corrupted . | . . . . . . Allies Melted . | . . . . . . Intel | -11 -10 -10 -8 -8 -6 ------- Run | Yrd Mat Sub Rec Scr Fac Active Infowar (turns) 4081 | 13 1185 1129 . . 1754 IFF 484 | . . . . . 484 Terrain 7 | . . . . . 7 Seismic 2327 | 13 1185 1129 . . . Jamming 1256 | . . . . . 1256 ECM 14 | . . . . . 14 Robot Analysis Total 9 | . 1 . . 8 . Derelict Logs Recovered 6 | . . 1 . 5 . Drone Launches . | . . . . . . Drone Recoveries . | . . . . . . Exploration | -11 -10 -10 -8 -8 -6 ------------- Run | Yrd Mat Sub Rec Scr Fac Turns Passed 13860 | 115 1226 2129 954 7231 2205 Spaces Moved 7637 | 61 823 1298 519 3919 1017 Core 200 | 2 . . . 198 . Treads 776 | . . . . . 776 Legs . | . . . . . . Wheels 6328 | 59 823 1298 519 3388 241 Hover 333 | . . . . 333 . Flight . | . . . . . . Fastest Speed 50 | 50 100 105 165 50 145 Average Speed 162 | 98 112 131 168 180 172 Slowest Speed 400 | 100 115 165 177 295 400 Overloaded Moves . | . . . . . . Propulsion Burnouts . | . . . . . . Robots Hopped . | . . . . . . Potential Cave-ins 1 | . . 1 . . . Cave-ins Triggered 1 | . . . . . 1 Exploration Rate (%) 54 | 3 86 48 77 94 16 Regions Visited 5 Branch Regions 3 Pre-discovered Areas 4 | . 2 2 . . . Known Exits Taken 2 | . 1 1 . . . Unknown Exits Taken 3 | 1 . . 1 1 . Scrap Searched 16 | . . 8 . 8 . Spaces Dug 19 | . . 6 7 . 6 Terrain Destroyed 92 | . . 67 18 . 7 Melee 13 | . . 3 4 . 6 Projectile 23 | . . 8 14 . 1 AOE 56 | . . 56 . . . Terrain Rammed . | . . . . . . Walls Destroyed . | . . . . . . Machines Disabled . | . . . . . . Actions | -11 -10 -10 -8 -8 -6 --------- Run | Yrd Mat Sub Rec Scr Fac Total 8615 | 89 1089 1517 568 4069 1283 Wait 386 | 5 219 24 8 77 53 Move 7632 | 60 822 1297 518 3918 1017 Hop . | . . . . . . Pick Up 119 | 5 17 38 9 30 20 Fast Attach 38 | 6 6 3 . 11 12 Attach 22 | 1 . 6 . 3 12 Detach 12 | . . . . 6 6 Swap 64 | . 5 28 6 6 19 Drop 56 | . 4 20 2 18 12 Fire 228 | 12 16 75 16 . 109 Melee 54 | . . 26 7 . 21 Ram . | . . . . . . Kick . | . . . . . . Crush 2 | . . . . . 2 Escape Stasis . | . . . . . . Rewire . | . . . . . . Trap . | . . . . . . Miscellaneous 2 | . . . 2 . . Route ------- -11/Scrapyard -10/Materials (discovered 5 exits: *Mat x3 / [*Min] / *Sub) -10/Subcaves (discovered 4 exits: Mat x2 / *Rec / *Scr) -8/Recycling (discovered 2 exits: *Fac / *Scr) -8/Scraptown (discovered 2 exits: *Fac x2) -6/Factory (discovered 1 exit: [*Low]) History --------- Turn | Location | Event 17 | -11/Scrapyard | Discovered new exit (range 16) 116 | -11/Scrapyard | Entered Materials 310 | -10/Materials | Build established: Mutant 415 | -10/Materials | Discovered new exit (range 15) 482 | -10/Materials | Repaired Spread Laser 632 | -10/Materials | Discovered new exit (range 14) 858 | -10/Materials | Identified exit to Materials 858 | -10/Materials | Identified exit to Subcaves 931 | -10/Materials | Learned 4 Subcaves zone layouts 995 | -10/Materials | Learned location of 1 exit from Materials 1048 | -10/Materials | Learned 4 Subcaves zone layouts 1092 | -10/Materials | Learned location of 2 exits from Materials 1127 | -10/Materials | Learned location of 2 exits from Subcaves 1151 | -10/Materials | Learned Storage emergency access door positions 1187 | -10/Materials | Learned location of Subcaves (-10) 1235 | -10/Materials | Learned location of 1 exit from Storage 1293 | -10/Materials | Learned location of Mines (-10) 1342 | -10/Materials | Entered Subcaves 1343 | -10/Subcaves | Approached by a straggling Scientist 1343 | -10/Subcaves | Identified exit to Materials 1344 | -10/Subcaves | Identified exit to Recycling 1667 | -10/Subcaves | Shifting Twisted Machinery released Sub. Machine Gun 1669 | -10/Subcaves | Shifting Twisted Machinery released Flamer 1714 | -10/Subcaves | Learned location of Zion (-7) 1714 | -10/Subcaves | Met a Zionite searching for "candidates" 1869 | -10/Subcaves | Lost 3 parts (1p1n1w) 2172 | -10/Subcaves | Learned location of Storage (-8) 2234 | -10/Subcaves | Visited 4L-MR0's lab 2247 | -10/Subcaves | Found Prototype Device 2261 | -10/Subcaves | Found Maxwheels 2342 | -10/Subcaves | A swath of the cavern ceiling suddenly collapsed 2491 | -10/Subcaves | Shifting Twisted Machinery released Flamer 2520 | -10/Subcaves | Core integrity fell below 50% 2698 | -10/Subcaves | Visited Clippyterm 2702 | -10/Subcaves | Learned Factory fabricator intel 2702 | -10/Subcaves | Learned Research security intel 2714 | -10/Subcaves | Core integrity fell below 20% 2996 | -10/Subcaves | Disturbed a concealed Subdweller 3281 | -10/Subcaves | Build established: Hauler-Mutant 3323 | -10/Subcaves | Found SUBCON Basin 3471 | -10/Subcaves | Entered Recycling 3683 | -8/Recycling | Discovered new exit (range 3) 4202 | -8/Recycling | Scanned before Scraplab entrance 4227 | -8/Recycling | Entered Scraplab 4419 | -8/Recycling | Discovered new exit (range 4) 4425 | -8/Recycling | Entered Scraptown 4425 | -8/Scraptown | System corruption cleaned by C-Scrubber 4462 | -8/Scraptown | Heard Great Nut preacher, LISTEN AND RECITE! 4704 | -8/Scraptown | Visited Awakened 4724 | -8/Scraptown | Visited Fellowship of the Rings 5341 | -8/Scraptown | Scanned Subdweller tech in exchange for log data 5347 | -8/Scraptown | Learned Research machine intel 5350 | -8/Scraptown | Learned location of 1 exit from Research 5353 | -8/Scraptown | Learned Research interactive machine intel 5356 | -8/Scraptown | Learned Factory non-interactive machine intel 5518 | -8/Scraptown | Discovered new exit (range 13) 5654 | -8/Scraptown | Visited Bundlers 5846 | -8/Scraptown | Visited Symbiants 5905 | -8/Scraptown | Visited Comm Corps 6076 | -8/Scraptown | Visited Assassins FH 6123 | -8/Scraptown | Visited TADAMA 6229 | -8/Scraptown | Visited UFD Registry 6229 | -8/Scraptown | Registered with UFD as "Boltsplitter" 6453 | -8/Scraptown | Visited Observation Area 6501 | -8/Scraptown | Visited Science Guys 6881 | -8/Scraptown | Visited LU-1G1's Boring Crew 6999 | -8/Scraptown | Visited Infowarlord's Domain 7043 | -8/Scraptown | Visited Research Penetration Think Tank 7102 | -8/Scraptown | Visited A0-MCA Data Center 7188 | -8/Scraptown | Visited Derelict Rescue Squad 7223 | -8/Scraptown | Found DRS Beacon 7298 | -8/Scraptown | Visited Junk Repository 7404 | -8/Scraptown | Visited Analyses Database 7814 | -8/Scraptown | Released all parts (6) 8111 | -8/Scraptown | Build established: Mutant 8623 | -8/Scraptown | Given an A- rating by A0-MCA 8627 | -8/Scraptown | Found A0-MCA's Component Scanner 8752 | -8/Scraptown | Found Exp. Sensor Array 8888 | -8/Scraptown | Visited Curators Association 9099 | -8/Scraptown | Build established: Hauler-Mutant 9450 | -8/Scraptown | Build established: Mutant 9537 | -8/Scraptown | Tech Extrapolator generated special schematic: Machine Rigger 9928 | -8/Scraptown | Tech Extrapolator generated special schematic: Deep Structural Scanner 11445 | -8/Scraptown | Found Scrap Suit 11651 | -8/Scraptown | Discovered new exit (range 3) 11656 | -8/Scraptown | Entered Factory 11656 | -6/Factory | Evolved 8 slots: Propulsion x2, Utility x6 11657 | -6/Factory | Loaded intel: 211 non-interactive machine locations 11658 | -6/Factory | Loaded intel: 6 fabricator locations 11696 | -6/Factory | Found Launcher Loader 11969 | -6/Factory | Build established: Hacker-Mutant 12064 | -6/Factory | Identified Sfc. Transmogrifier 12169 | -6/Factory | Crushed by falling debris 12169 | -6/Factory | System corruption reached 10% 12200 | -6/Factory | Lost 3 parts (1n2u) 12377 | -6/Factory | Found Powered Armor 12463 | -6/Factory | Build established: Mutant 12550 | -6/Factory | Lost 3 parts (1n2u) 12972 | -6/Factory | Scrapoid reinforcements arrived 13119 | -6/Factory | Fabricated Lgt. Humpback (x1) 13159 | -6/Factory | Fabricated Mak. Ablative Armor (x1) 13283 | -6/Factory | Build established: Commander-Mutant 13335 | -6/Factory | Discovered new exit (range 11) 13352 | -6/Factory | Lost 4 allies 13413 | -6/Factory | Found Scrap Suit 13447 | -6/Factory | Found Scrap Suit 13541 | -6/Factory | Fabricated Spk. Heavy Treads (x1) 13752 | -6/Factory | Build established: Scavenger-Mutant 13861 | -6/Factory | Self-destructed Last Messages --------------- 13668_ Slug penetrates P-60 Hacker. 13668_ P-60 Hacker destroyed. 13669_ System corrupted: Energy discharge (-51). 13669_ R-10 Processor collects Corrupted Ovr. Scrapsphere. 13676_ R-10 Processor collects Lgt. Ion Engine. 13677_ M-13 Machinist repairs R-10 Processor Hpw. Tractor Beam. 13679_ Acquired 70 matter. 13682_ M-13 Machinist repairs R-10 Processor Com. Wheel. 13684_ M-13 Machinist repairs R-10 Processor Hpw. Tractor Beam. 13687_ 2EQNK%%WMPXKXQ